bitfinex/quotes_SOLUSD_20240712
["timestamp","ask_amount","ask_price","bid_price","bid_amount"]
[1720827508818,17.0403985,139.34,139.33,9.97538127]
[1720827509533,17.0403985,139.34,139.31,9.97538127]
[1720827509734,16.5844,139.32,139.31,9.97538127]
[1720827509904,16.5844,139.32,139.29,25.72098127]
[1720827510240,11.56,139.31,139.29,25.72098127]
[1720827514536,5.4805985,139.34,139.29,25.72098127]
[1720827514703,11.56,139.32,139.31,9.97538127]
[1720827517042,11.56,139.33,139.31,9.97538127]
[1720827519431,0.4567985,139.34,139.33,9.97538127]
[1720827519633,12.0167985,139.34,139.33,9.97538127]
[1720827520413,0.4567985,139.34,139.33,9.97538127]
[1720827522015,12.0167985,139.34,139.33,9.97538127]
[1720827524242,0.4567985,139.34,139.33,9.97538127]
[1720827525134,0.4567985,139.34,139.33,11.41058673]
[1720827531164,0.4567985,139.34,139.33,39.04218673]
[1720827531958,0.4567985,139.34,139.33,37.60698127]
[1720827532166,0.4567985,139.34,139.33,82.60698127]
[1720827535937,0.4567985,139.34,139.33,102.60698127]
[1720827536143,0.4567985,139.34,139.33,104.04176388]
[1720827537860,5.0205,139.43,139.4,9.97538127]
[1720827538036,16.5805,139.43,139.4,9.97538127]
[1720827538647,16.5808,139.42,139.4,9.97538127]
[1720827539161,5.0208,139.42,139.4,9.97538127]
[1720827548258,16.5805,139.43,139.4,9.97538127]
[1720827548664,5.0205,139.43,139.4,9.97538127]
[1720827548873,16.5805,139.43,139.4,9.97538127]
[1720827551767,5.0205,139.43,139.4,9.97538127]
[1720827551976,16.5805,139.43,139.4,9.97538127]
[1720827552276,5.0201,139.44,139.4,9.97538127]
[1720827552482,5.0201,139.44,139.42,9.97538127]
[1720827552866,12.52452497,139.46,139.42,9.97538127]
[1720827553166,11.56,139.45,139.44,9.97538127]
[1720827553372,11.56,139.45,139.42,9.97538127]
[1720827553566,11.56,139.44,139.42,9.97538127]
[1720827553767,12.52452497,139.46,139.42,9.97538127]
[1720827553983,11.56,139.44,139.42,9.97538127]
[1720827554179,16.5797,139.45,139.42,9.97538127]
[1720827554890,12.52432497,139.46,139.42,9.97538127]
[1720827555187,24.08432497,139.46,139.42,9.97538127]
[1720827555684,12.52432497,139.46,139.42,9.97538127]
[1720827555984,24.08432497,139.46,139.42,9.97538127]
[1720827558071,12.52432497,139.46,139.42,9.97538127]
[1720827558380,24.08432497,139.46,139.42,9.97538127]
[1720827559063,24.08432497,139.46,139.44,9.97538127]
[1720827562282,12.52432497,139.46,139.44,9.97538127]
[1720827562492,11.56,139.46,139.44,9.97538127]
[1720827565383,0.8738885,139.48,139.45,11.56]
[1720827565592,0.8738885,139.48,139.47,9.97538127]
[1720827566088,0.8738885,139.48,139.45,9.97538127]
[1720827566284,0.8738885,139.48,139.45,22.96949878]
[1720827566489,0.8738885,139.48,139.47,9.97538127]
[1720827576603,12.4338885,139.48,139.47,9.97538127]
[1720827577598,0.8738885,139.48,139.47,9.97538127]
[1720827579993,17.4524885,139.48,139.45,9.97538127]
[1720827580193,11.56,139.46,139.45,9.97538127]
[1720827580502,11.56,139.47,139.45,9.97538127]
[1720827583982,5.8924885,139.48,139.45,9.97538127]
[1720827584201,11.56,139.47,139.45,9.97538127]
[1720827585508,5.8924885,139.48,139.45,9.97538127]
[1720827585803,11.56,139.47,139.45,9.97538127]
[1720827588506,11.56,139.46,139.45,9.97538127]
[1720827589505,11.56,139.47,139.45,9.97538127]
[1720827590302,0.8738885,139.48,139.45,9.97538127]
[1720827590504,12.4338885,139.48,139.47,9.97538127]
[1720827590684,12.4338885,139.48,139.45,9.97538127]
[1720827590893,11.56,139.47,139.45,9.97538127]
[1720827591290,12.4338885,139.48,139.45,9.97538127]
[1720827592605,11.56,139.47,139.45,9.97538127]
[1720827595600,12.4338885,139.48,139.45,9.97538127]
[1720827596636,11.56,139.47,139.45,9.97538127]
[1720827596822,12.4338885,139.48,139.45,9.97538127]
[1720827598208,12.4338885,139.48,139.47,9.97538127]
[1720827598909,0.8738885,139.48,139.47,9.97538127]
[1720827599419,12.4338885,139.48,139.47,9.97538127]
[1720827599620,0.8738885,139.48,139.47,9.97538127]
[1720827603424,12.4338885,139.48,139.47,9.97538127]
[1720827604999,0.8738885,139.48,139.45,9.97538127]
[1720827605201,17.4525885,139.48,139.45,9.97538127]
[1720827608224,12.4338885,139.48,139.45,9.97538127]
[1720827612316,17.4525885,139.48,139.45,9.97538127]
[1720827612518,11.56,139.47,139.45,9.97538127]
[1720827614232,5.8925885,139.48,139.45,9.97538127]
[1720827614432,11.56,139.47,139.45,9.97538127]
[1720827621325,0.8738885,139.48,139.45,9.97538127]
[1720827621533,11.56,139.47,139.45,9.97538127]
[1720827622417,12.4338885,139.48,139.45,9.97538127]
[1720827624036,12.4338885,139.48,139.47,9.97538127]
[1720827625642,12.4338885,139.48,139.45,9.97538127]
[1720827628621,11.56,139.47,139.45,9.97538127]
[1720827628813,11.56,139.47,139.43,11.40960274]
[1720827629018,11.56,139.44,139.43,9.97538127]
[1720827629243,11.56,139.44,139.41,9.97538127]
[1720827629631,11.56,139.44,139.43,9.97538127]
[1720827629832,11.56,139.45,139.43,9.97538127]
[1720827636543,0.8738885,139.48,139.43,9.97538127]
[1720827636847,11.56,139.46,139.43,9.97538127]
[1720827641232,11.56,139.45,139.43,9.97538127]
[1720827642646,11.56,139.44,139.39,25.09628127]
[1720827642844,11.56,139.44,139.37,9.97538127]
[1720827642845,11.56,139.4,139.37,9.97538127]
[1720827643553,5.0199,139.45,139.39,9.97538127]
[1720827643867,11.56,139.42,139.39,9.97538127]
[1720827644056,11.56,139.42,139.41,9.97538127]
[1720827644255,5.0191,139.47,139.41,9.97538127]
[1720827644438,5.0193,139.46,139.41,9.97538127]
[1720827644637,11.56,139.44,139.41,9.97538127]
[1720827644838,11.56,139.44,139.41,11.40975841]
[1720827645463,11.56,139.44,139.41,9.97538127]
[1720827647050,11.56,139.44,139.41,11.02432555]
[1720827647669,11.56,139.44,139.41,9.97538127]
[1720827647989,5.0197,139.45,139.41,9.97538127]
[1720827648275,11.56,139.44,139.41,9.97538127]
[1720827649557,11.56,139.46,139.43,9.97538127]
[1720827651065,16.5794,139.46,139.43,9.97538127]
[1720827651371,16.5794,139.46,139.45,9.97538127]
[1720827651569,5.0194,139.46,139.45,9.97538127]
[1720827651871,11.56,139.46,139.45,9.97538127]
[1720827652045,12.4338885,139.48,139.43,9.97538127]
[1720827652247,12.4338885,139.48,139.43,21.53538127]
[1720827652972,12.4338885,139.48,139.46,9.97538127]
[1720827654254,17.4525885,139.48,139.46,9.97538127]
[1720827655166,16.579,139.47,139.46,9.97538127]
[1720827655346,17.4525885,139.48,139.46,9.97538127]
[1720827655675,11.56,139.47,139.46,9.97538127]
[1720827660651,11.56,139.47,139.44,9.97538127]
[1720827660976,0.8738885,139.48,139.42,9.97538127]
[1720827660977,11.56,139.45,139.42,9.97538127]
[1720827661150,11.56,139.44,139.42,9.97538127]
[1720827664558,5.0194,139.46,139.42,9.97538127]
[1720827664759,11.56,139.44,139.42,9.97538127]
[1720827665059,11.56,139.45,139.42,9.97538127]
[1720827666591,11.56,139.44,139.42,9.97538127]
[1720827666797,5.0194,139.46,139.42,9.97538127]
[1720827667087,11.56,139.44,139.42,9.97538127]
[1720827668668,8.37377103,139.48,139.42,9.97538127]
[1720827668874,11.56,139.46,139.42,9.97538127]
[1720827669301,16.5794,139.46,139.42,9.97538127]
[1720827669469,16.5804,139.43,139.4,25.21648127]
[1720827669787,11.56,139.42,139.4,25.21648127]
[1720827670491,11.56,139.41,139.4,9.97538127]
[1720827671366,11.56,139.42,139.4,9.97538127]
[1720827673665,11.56,139.43,139.4,9.97538127]
[1720827673863,11.56,139.42,139.4,9.97538127]
[1720827674759,11.56,139.43,139.4,9.97538127]
[1720827675579,5.0198,139.45,139.4,9.97538127]
[1720827675780,11.56,139.43,139.4,9.97538127]
[1720827680594,5.0195,139.46,139.4,9.97538127]
[1720827680793,11.56,139.44,139.4,9.97538127]
[1720827681798,5.0195,139.46,139.4,9.97538127]
[1720827681995,11.56,139.44,139.42,9.97538127]
[1720827682499,11.56,139.45,139.42,9.97538127]
[1720827683607,11.56,139.44,139.42,9.97538127]
[1720827684016,11.56,139.43,139.4,9.97538127]
[1720827684217,11.56,139.44,139.4,9.97538127]
[1720827684507,11.56,139.44,139.42,9.97538127]
[1720827686514,11.56,139.43,139.42,9.97538127]
[1720827686815,11.56,139.43,139.4,9.97538127]
[1720827686997,11.56,139.44,139.4,9.97538127]
[1720827687309,5.0197,139.45,139.42,9.97538127]
[1720827687497,11.56,139.44,139.42,9.97538127]
[1720827692790,5.0193,139.46,139.42,9.97538127]
[1720827693112,11.56,139.45,139.44,9.97538127]
[1720827693414,16.5793,139.46,139.44,9.97538127]
[1720827699321,5.0197,139.45,139.44,9.97538127]
[1720827701224,5.0197,139.45,139.42,9.97538127]
[1720827702021,16.5797,139.45,139.42,9.97538127]
[1720827702523,5.0197,139.45,139.44,9.97538127]
[1720827702837,16.5797,139.45,139.44,9.97538127]
[1720827704439,5.0197,139.45,139.44,9.97538127]
[1720827710838,16.5797,139.45,139.44,9.97538127]
[1720827714541,11.56,139.45,139.44,9.97538127]
[1720827716839,11.56,139.45,139.42,9.97538127]
[1720827717041,16.5794,139.46,139.42,9.97538127]
[1720827721442,16.5797,139.45,139.42,9.97538127]
[1720827722222,11.56,139.44,139.42,9.97538127]
[1720827722655,16.5797,139.45,139.42,9.97538127]
[1720827722842,11.56,139.45,139.42,9.97538127]
[1720827723536,11.56,139.46,139.42,9.97538127]
[1720827725664,0.8738885,139.48,139.42,9.97538127]
[1720827725832,0.8738885,139.48,139.45,9.97538127]
[1720827726227,0.8738885,139.48,139.44,0.47200601]
[1720827726529,0.8738885,139.48,139.47,9.97538127]
[1720827726743,0.8738885,139.48,139.44,9.97538127]
[1720827726933,12.4338885,139.48,139.44,9.97538127]
[1720827727348,12.4338885,139.48,139.46,9.97538127]
[1720827727655,0.8738885,139.48,139.46,9.97538127]
[1720827727860,12.4338885,139.48,139.46,9.97538127]
[1720827729060,0.8738885,139.48,139.46,9.97538127]
[1720827729235,12.4338885,139.48,139.46,9.97538127]
[1720827731143,12.4338885,139.48,139.42,9.97538127]
[1720827731144,5.0197,139.45,139.42,9.97538127]
[1720827731341,11.56,139.44,139.42,9.97538127]
[1720827731850,5.0191,139.47,139.42,9.97538127]
[1720827732033,11.56,139.45,139.42,9.97538127]
[1720827732235,11.56,139.46,139.42,9.97538127]
[1720827733755,8.7842618,139.48,139.44,9.97538127]
[1720827733966,11.56,139.47,139.44,9.97538127]
[1720827734456,11.56,139.46,139.44,9.97538127]
[1720827734652,11.56,139.46,139.42,9.97538127]
[1720827734840,11.56,139.45,139.42,9.97538127]
[1720827735453,11.56,139.46,139.42,9.97538127]
[1720827737360,11.56,139.45,139.42,9.97538127]
[1720827738475,11.56,139.46,139.42,9.97538127]
[1720827739263,11.56,139.46,139.41,22.0108]
[1720827739264,11.56,139.46,139.44,9.97538127]
[1720827740257,0.8738885,139.48,139.44,9.97538127]
[1720827740575,0.8738885,139.48,139.41,43.6208]
[1720827740576,0.8738885,139.48,139.47,9.97538127]
[1720827740874,5.0213,139.41,139.36,7.50762569]
[1720827741046,10.0,139.45,139.35,15.9273]
[1720827741047,11.56,139.39,139.35,15.9273]
[1720827741381,11.56,139.39,139.37,9.97538127]
[1720827741864,5.0209,139.42,139.37,9.97538127]
[1720827742064,11.56,139.39,139.37,9.97538127]
[1720827742277,5.0209,139.42,139.37,9.97538127]
[1720827742576,11.56,139.4,139.37,9.97538127]
[1720827743175,11.56,139.4,139.39,9.97538127]
[1720827745573,5.0209,139.42,139.39,9.97538127]
[1720827745764,11.56,139.4,139.39,9.97538127]
[1720827747656,11.76,139.4,139.39,9.97538127]
[1720827749752,11.76,139.4,139.37,9.97538127]
[1720827750167,0.2,139.4,139.37,9.97538127]
[1720827750485,11.76,139.4,139.39,9.97538127]
[1720827752553,0.2,139.4,139.39,9.97538127]
[1720827752981,11.76,139.4,139.39,9.97538127]
[1720827756819,11.76,139.4,139.37,9.97538127]
[1720827756961,11.56,139.39,139.35,15.9273]
[1720827757163,11.56,139.39,139.36,9.97538127]
[1720827758486,0.2,139.4,139.36,9.97538127]
[1720827758487,11.56,139.38,139.36,9.97538127]
[1720827760989,11.56,139.39,139.36,9.97538127]
[1720827762892,11.56,139.38,139.36,9.97538127]
[1720827763287,0.2,139.4,139.36,9.97538127]
[1720827763492,11.76,139.4,139.36,9.97538127]
[1720827766598,11.56,139.4,139.36,9.97538127]
[1720827770786,39.93728306,139.45,139.38,9.97538127]
[1720827770989,11.56,139.41,139.38,9.97538127]
[1720827771187,11.56,139.4,139.38,9.97538127]
[1720827771707,11.56,139.39,139.38,9.97538127]
[1720827772397,5.0208,139.42,139.38,9.97538127]
[1720827777618,11.56,139.4,139.38,9.97538127]
[1720827778615,5.0205,139.43,139.38,9.97538127]
[1720827778919,11.56,139.41,139.38,9.97538127]
[1720827781621,11.56,139.4,139.38,9.97538127]
[1720827785894,0.2,139.39,139.38,9.97538127]
[1720827787209,11.56,139.4,139.38,9.97538127]
[1720827789900,5.0212,139.41,139.38,9.97538127]
[1720827790094,11.56,139.4,139.38,9.97538127]
[1720827793431,11.56,139.39,139.38,9.97538127]
[1720827799433,11.56,139.4,139.38,9.97538127]
[1720827802633,5.0209,139.42,139.38,9.97538127]
[1720827802935,11.56,139.4,139.38,9.97538127]
[1720827805214,0.2,139.39,139.38,9.97538127]
[1720827805738,0.2,139.39,139.36,9.97538127]
[1720827806141,11.76,139.39,139.36,9.97538127]
[1720827807734,11.56,139.39,139.36,9.97538127]
[1720827809639,11.56,139.4,139.36,9.97538127]
[1720827811950,11.56,139.4,139.38,9.97538127]
[1720827813648,11.56,139.39,139.34,9.97538127]
[1720827813850,11.56,139.37,139.33,16.0794]
[1720827814230,11.56,139.38,139.34,9.97538127]
[1720827814549,11.56,139.38,139.36,9.97538127]
[1720827817565,16.5822,139.38,139.36,9.97538127]
[1720827818864,5.0219,139.39,139.36,9.97538127]
[1720827821963,16.5819,139.39,139.36,9.97538127]
[1720827823966,5.0222,139.38,139.36,9.97538127]
[1720827829567,5.0222,139.38,139.34,11.56]
[1720827829878,5.0222,139.38,139.35,45.0]
[1720827830240,5.0222,139.38,139.36,9.97538127]
[1720827834276,5.0217,139.4,139.36,9.97538127]
[1720827834439,5.0217,139.4,139.37,45.6515983]
[1720827834644,0.2,139.38,139.37,46.43490412]
[1720827835264,0.2,139.38,139.37,45.0]
[1720827835468,5.0217,139.4,139.37,45.0]
[1720827836544,16.5817,139.4,139.37,45.0]
[1720827836740,5.0219,139.39,139.37,45.0]
[1720827841673,0.2,139.38,139.37,45.0]
[1720827851587,16.5813,139.41,139.37,45.0]
[1720827856065,5.0213,139.41,139.37,45.0]
[1720827856263,16.5813,139.41,139.37,45.0]
[1720827858592,5.0215,139.4,139.37,45.0]
[1720827858788,5.022,139.39,139.36,9.97538127]
[1720827859290,0.2,139.38,139.36,9.97538127]
[1720827860171,0.2,139.38,139.37,45.0]
[1720827868197,5.0216,139.4,139.37,45.0]
[1720827871906,12.8916733,139.41,139.34,9.97538127]
[1720827871907,5.022,139.39,139.34,9.97538127]
[1720827872074,5.022,139.39,139.35,45.0]
[1720827876301,5.022,139.39,139.34,45.0]
[1720827876873,5.022,139.39,139.35,9.97538127]
[1720827877095,5.022,139.39,139.36,45.0]
[1720827881109,5.0222,139.38,139.36,45.0]
[1720827881681,16.5822,139.38,139.36,45.0]
[1720827882906,11.56,139.38,139.36,45.0]
[1720827883517,16.582,139.39,139.36,45.0]
[1720827886925,5.022,139.39,139.36,45.0]
[1720827887095,20.39291821,139.41,139.36,45.0]
[1720827887288,11.56,139.39,139.36,45.0]
[1720827888707,5.0222,139.38,139.36,45.0]
[1720827892713,7.50124491,139.41,139.36,45.0]
[1720827893014,19.06124491,139.41,139.36,45.0]
[1720827893315,7.50124491,139.41,139.36,45.0]
[1720827893514,7.50124491,139.41,139.37,11.56]
[1720827893814,7.50124491,139.41,139.38,45.0]
[1720827894612,12.52234491,139.41,139.38,45.0]
[1720827897820,12.52234491,139.41,139.38,56.56]
[1720827898019,10.0,139.56,139.42,22.568]
[1720827898319,11.56,139.57,139.53,5.0167]
[1720827898518,10.0,139.58,139.54,45.0]
[1720827899016,11.56,139.57,139.54,45.0]
[1720827900009,11.56,139.56,139.54,45.0]
[1720827900195,5.0153,139.58,139.54,45.0]
[1720827900516,5.0153,139.58,139.55,45.0]
[1720827900723,11.56,139.57,139.55,45.0]
[1720827901019,11.56,139.56,139.52,14.99248127]
[1720827901219,11.56,139.57,139.53,45.0]
[1720827901588,16.575,139.58,139.53,56.56]
[1720827902006,16.575,139.58,139.53,61.5767]
[1720827902409,5.0147,139.59,139.54,5.0162]
[1720827902614,11.56,139.58,139.55,45.0]
[1720827903202,16.575,139.58,139.55,45.0]
[1720827903600,5.015,139.58,139.55,45.0]
[1720827904302,5.05661087,139.61,139.56,14.99078127]
[1720827904503,5.05661087,139.61,139.57,45.0]
[1720827905102,5.0143,139.6,139.57,45.0]
[1720827905297,5.05661087,139.61,139.57,50.0153]
[1720827906199,5.05661087,139.61,139.57,45.0]
[1720827906618,16.61661087,139.61,139.57,45.0]
[1720827906905,16.61661087,139.61,139.57,50.0153]
[1720827907521,16.61661087,139.61,139.57,61.5753]
[1720827907522,5.05661087,139.61,139.57,61.5753]
[1720827909708,0.04261087,139.61,139.58,5.0149]
[1720827909912,0.04261087,139.61,139.59,45.0]
[1720827910217,0.04261087,139.61,139.59,50.0146]
[1720827910420,0.04261087,139.61,139.59,61.5746]
[1720827911214,0.04261087,139.61,139.59,50.0146]
[1720827913027,0.04261087,139.61,139.6,5.0143]
[1720827913225,0.04261087,139.61,139.6,45.0]
[1720827918418,0.04261087,139.61,139.58,14.99018127]
[1720827918613,0.04261087,139.61,139.59,45.0]
[1720827919540,0.04261087,139.61,139.58,14.99018127]
[1720827922520,0.04261087,139.61,139.59,45.0]
[1720827923031,0.04261087,139.61,139.59,50.0145]
[1720827924640,0.04261087,139.61,139.59,61.5745]
[1720827925225,0.04261087,139.61,139.59,50.0145]
[1720827925825,0.04261087,139.61,139.59,45.0]
[1720827928141,0.04261087,139.61,139.59,50.0146]
[1720827928734,0.04261087,139.61,139.59,45.0]
[1720827929246,0.04261087,139.61,139.59,50.0146]
[1720827932528,0.04261087,139.61,139.6,16.5743]
[1720827933045,0.04261087,139.61,139.6,61.5743]
[1720827933635,0.04261087,139.61,139.6,50.0143]
[1720827933844,0.04261087,139.61,139.6,61.5743]
[1720827936547,0.04261087,139.61,139.6,50.0143]
[1720827938858,0.04261087,139.61,139.58,9.97538127]
[1720827939230,0.04261087,139.61,139.59,5.0146]
[1720827939452,0.04261087,139.61,139.6,5.0143]
[1720827939754,0.04261087,139.61,139.59,5.0145]
[1720827939953,0.04261087,139.61,139.59,16.5745]
[1720827940336,0.04261087,139.61,139.59,5.0145]
[1720827942830,0.04261087,139.61,139.6,5.0143]
[1720827961889,0.04261087,139.61,139.59,5.0145]
[1720827964463,0.04261087,139.61,139.59,16.5744]
[1720827964663,0.04261087,139.61,139.59,5.0144]
[1720827966473,0.04261087,139.61,139.6,5.0143]
[1720827973656,11.60261087,139.61,139.55,9.97538127]
[1720827973878,11.60261087,139.61,139.57,5.0153]
[1720827973879,11.56,139.6,139.57,5.0153]
[1720827974273,11.60261087,139.61,139.58,5.0149]
[1720827974876,11.60261087,139.61,139.59,5.0145]
[1720827975569,0.04261087,139.61,139.59,5.0145]
[1720827975764,11.60261087,139.61,139.59,5.0145]
[1720827975969,0.04261087,139.61,139.59,5.0145]
[1720827976557,0.04261087,139.61,139.58,5.0149]
[1720827978581,5.05681087,139.61,139.57,9.97538127]
[1720827978770,16.61661087,139.61,139.57,5.0153]
[1720827978973,16.61661087,139.61,139.57,14.99068127]
[1720827979187,5.05661087,139.61,139.57,14.99068127]
[1720827980593,5.0143,139.6,139.57,14.99068127]
[1720827982073,16.61671087,139.61,139.57,14.99068127]
[1720827982793,1.93943659,139.6,139.57,14.99068127]
[1720827982998,1.93943659,139.6,139.57,9.97538127]
[1720827982999,1.93943659,139.59,139.57,9.97538127]
[1720827983702,1.93943659,139.59,139.57,14.99068127]
[1720827984384,16.61671087,139.61,139.57,14.99068127]
[1720827984699,1.93952725,139.6,139.57,14.99068127]
[1720827984993,1.93952725,139.59,139.57,14.99068127]
[1720827985294,5.0143,139.6,139.57,14.99068127]
[1720827985590,1.93952725,139.59,139.57,14.99068127]
[1720827985893,5.0143,139.6,139.57,14.99068127]
[1720827986088,1.93952725,139.59,139.57,14.99068127]
[1720827986393,5.0143,139.6,139.57,14.99068127]
[1720827986595,1.93953315,139.59,139.57,9.97538127]
[1720827986898,5.0143,139.6,139.57,9.97538127]
[1720827987788,0.04261087,139.61,139.57,9.97538127]
[1720827987977,0.04261087,139.61,139.6,5.0143]
[1720827991802,0.04261087,139.61,139.59,27.9825028]
[1720827992007,0.04261087,139.61,139.6,11.56]
[1720827992502,0.04261087,139.61,139.59,16.4225028]
[1720827992689,0.04261087,139.61,139.59,26.54988127]
[1720828011007,0.04261087,139.61,139.6,50.0143]
[1720828013009,0.04261087,139.61,139.6,61.5743]
[1720828017318,0.04261087,139.61,139.6,50.0143]
[1720828018805,0.04261087,139.61,139.6,5.0143]
[1720828031630,1.98181766,139.61,139.6,5.0143]
[1720828032647,1.98182377,139.61,139.6,5.0143]
[1720828033717,1.98177866,139.61,139.6,5.0143]
[1720828035016,0.04261087,139.61,139.6,5.0143]
[1720828035221,1.98176644,139.61,139.6,5.0143]
[1720828035749,1.98174389,139.61,139.6,5.0143]
[1720828036520,0.04261087,139.61,139.6,5.0143]
[1720828037843,0.04261087,139.61,139.6,16.5743]
[1720828040433,0.04261087,139.61,139.6,61.5743]
[1720828041429,0.04261087,139.61,139.6,62.48825295]
[1720828041655,0.04261087,139.61,139.6,63.00665439]
[1720828042629,0.04261087,139.61,139.6,61.5743]
[1720828042828,0.04261087,139.61,139.6,62.52940196]
[1720828043024,0.04261087,139.61,139.6,61.5743]
[1720828044546,0.04261087,139.61,139.6,50.0143]
[1720828044747,0.04261087,139.61,139.6,61.5743]
[1720828049131,0.04261087,139.61,139.6,16.5743]
[1720828050242,0.04261087,139.61,139.6,5.0143]
[1720828050430,0.04261087,139.61,139.6,16.5743]
[1720828053956,0.04261087,139.61,139.6,5.0143]
[1720828054155,0.04261087,139.61,139.6,16.5743]
[1720828054360,0.04261087,139.61,139.6,5.0143]
[1720828058067,0.04261087,139.61,139.6,16.5743]
[1720828058243,0.04261087,139.61,139.6,18.00689847]
[1720828058975,0.04261087,139.61,139.6,16.5743]
[1720828061577,0.04261087,139.61,139.6,5.0143]
[1720828075466,0.04261087,139.61,139.6,6.44653431]
[1720828075984,0.04261087,139.61,139.6,18.00653431]
[1720828076373,0.04261087,139.61,139.6,6.44653431]
[1720828076884,0.04261087,139.61,139.6,5.0143]
[1720828101600,0.04261087,139.61,139.6,6.4467911]
[1720828102181,0.04261087,139.61,139.6,5.0143]
[1720828106299,0.04261087,139.61,139.6,5.82076712]
[1720828106897,0.04261087,139.61,139.6,5.0143]
[1720828127138,1.98181426,139.61,139.57,9.97538127]
[1720828127295,0.04261087,139.61,139.57,9.97538127]
[1720828127616,11.60261087,139.61,139.57,9.97538127]
[1720828127813,11.60261087,139.61,139.59,5.0145]
[1720828135029,0.04261087,139.61,139.59,5.0145]
[1720828135211,11.60261087,139.61,139.59,5.0145]
[1720828144223,0.04261087,139.61,139.59,5.0145]
[1720828144429,11.60261087,139.61,139.59,5.0145]
[1720828146513,11.56,139.6,139.59,5.0145]
[1720828147328,0.04261087,139.61,139.59,5.0145]
[1720828147525,11.56,139.6,139.59,5.0145]
[1720828149217,0.04261087,139.61,139.59,5.0145]
[1720828149417,11.60261087,139.61,139.59,5.0145]
[1720828150137,11.60261087,139.61,139.6,5.0143]
[1720828150832,0.04261087,139.61,139.6,5.0143]
[1720828151033,11.60261087,139.61,139.6,5.0143]
[1720828152025,11.60261087,139.61,139.59,5.0146]
[1720828153742,11.56,139.6,139.59,5.0146]
[1720828153930,11.56,139.6,139.57,9.97538127]
[1720828158042,0.04261087,139.61,139.57,9.97538127]
[1720828158342,11.60261087,139.61,139.59,5.0143]
[1720828159445,11.56,139.6,139.58,5.0149]
[1720828165052,11.60261087,139.61,139.58,5.0149]
[1720828165255,0.04261087,139.61,139.58,5.0149]
[1720828165552,11.60261087,139.61,139.59,5.0146]
[1720828166751,11.60261087,139.61,139.58,5.0149]
[1720828168032,0.04261087,139.61,139.59,5.0146]
[1720828168735,0.04261087,139.61,139.58,5.0149]
[1720828169446,0.04261087,139.61,139.57,9.97538127]
[1720828169447,0.04261087,139.61,139.59,5.0146]
[1720828173441,0.04261087,139.61,139.58,5.0148]
[1720828174630,1.93923981,139.6,139.58,5.0148]
[1720828174831,0.04261087,139.61,139.58,5.0148]
[1720828175041,1.93929104,139.6,139.58,5.0148]
[1720828175254,0.04261087,139.61,139.58,5.0148]
[1720828175455,1.93929104,139.6,139.58,5.0148]
[1720828175652,0.04261087,139.61,139.58,5.0148]
[1720828175856,1.93929146,139.6,139.58,5.0148]
[1720828176061,0.04261087,139.61,139.58,5.0148]
[1720828176847,0.04261087,139.61,139.59,14.98998127]
[1720828176848,1.93929145,139.6,139.59,14.98998127]
[1720828177164,0.04261087,139.61,139.59,14.98998127]
[1720828177340,1.93924002,139.6,139.59,14.98998127]
[1720828177966,0.04261087,139.61,139.59,14.98998127]
[1720828178463,1.93924625,139.6,139.59,14.98998127]
[1720828178661,1.93929157,139.6,139.59,14.98998127]
[1720828178964,0.04261087,139.61,139.59,14.98998127]
[1720828179543,1.93929137,139.6,139.59,14.98998127]
[1720828179952,0.04261087,139.61,139.59,14.98998127]
[1720828180473,1.93929137,139.6,139.59,14.98998127]
[1720828181574,0.04261087,139.61,139.59,14.98998127]
[1720828188458,0.04261087,139.61,139.6,5.0143]
[1720828191770,0.04261087,139.61,139.6,16.5743]
[1720828191947,0.04261087,139.61,139.6,5.0143]
[1720828193558,0.04261087,139.61,139.59,14.98988127]
[1720828199480,0.04261087,139.61,139.6,5.0143]
[1720828201182,13.54181125,139.61,139.57,9.97538127]
[1720828201371,11.60261087,139.61,139.57,9.97538127]
[1720828202192,11.56,139.6,139.57,5.0153]
[1720828204075,11.56,139.6,139.58,5.015]
[1720828204980,11.56,139.59,139.58,5.015]
[1720828205281,11.56,139.6,139.58,5.015]